Cogmind - Beta 15 @@@ ROGUE MODE // 2025.09.20 @ 21:50:01 Player: Kotyk77 Result: Destroyed by S-27 Virus with Autogun Performance ------------- Evolutions (6) 3000 Regions Visited (9) 1800 Robots Destroyed (67) 335 Value Destroyed (1895) 1895 Prototype IDs (7) 140 Alien Tech Used (0) 0 Bonus (0) 0 TOTAL SCORE: 7170 Bonus ------- None Cogmind --------- Core Integrity 0/1150 Matter 65/300 Energy 100/100 System Corruption 10% Temperature Cool (0) Movement Core (50) Location -4/Factory Parts ------- > --- POWER (3) -------- (None) > --- PROPULSION (6) --- (None) > --- UTILITY (8) ------ (None) > --- WEAPON (2) ------- (None) > --- INVENTORY (5) ---- Cloaking Device Improved Light Armor Plating HERF Cannon KE Penetrator Enhanced Gauss Cannon Peak State ------------ > --- POWER ------------ Light Angular Momentum Engine Cooled Fission Core > --- PROPULSION ------- Medium Treads Improved Titanium Leg Wheel Armored Wheel Field Propulsion Drive > --- UTILITY ---------- High-capacity Storage Unit Advanced Sensor Array Advanced Signal Interpreter Melee Analysis Suite Transmission Jammer Advanced ECM Suite Hacking Suite > --- WEAPON ----------- Mini Assault Cannon Chainsword > --- INVENTORY -------- Light Angular Momentum Engine Light Angular Momentum Engine Light Angular Momentum Engine Improved Titanium Leg Weight Redist. System Advanced Weight Redist. System Gravity Neutralizer Machine Analyzer Advanced Sensor Array Improved Signal Interpreter Improved Targeting Computer Improved Light Armor Plating Improved Light Armor Plating Disruptor Cannon Heavy Ion Cannon KE Penetrator Proton Missile Launcher Heavy Rocket Launcher Heavy Rocket Launcher Spear [Rating: 71] Favorites ----------- Power Light Angular Momentum Engine Engine Light Angular Momentum Engine Power Core Light Nuclear Core Reactor Light Quantum Reactor Propulsion Improved Flight Unit Treads Medium Treads Leg Improved Titanium Leg Wheel Wheel Hover Unit Airjet Flight Unit Improved Flight Unit Utility Improved Signal Interpreter Device Advanced Weight Redist. System Storage High-capacity Storage Unit Processor Improved Signal Interpreter Hackware Hacking Suite Protection Improved Light Armor Plating Weapon Chainsword Energy Gun Medium Laser Energy Cannon EM Pulse Cannon Ballistic Gun Enhanced Autogun Ballistic Cannon Mini Assault Cannon Launcher Grenade Launcher Special Weapon Remote Datajack Impact Weapon Flail Slashing Weapon Chainsword Build | -11 -10 -10 -8 -7 -6 -5 -4 -4 -4 ------- Run | Yrd Mat Sub Mat Fac Fac Fac Fac Was Fac Slots Evolved 12 | . . . 4 2 2 2 2 . . Power 2 | . . . . . 1 . 1 . . Propulsion 4 | . . . 2 2 . . . . . Utility 6 | . . . 2 . 1 2 1 . . Weapon . | . . . . . . . . . . Parts Attached 94 | 7 5 1 25 29 15 4 . 1 7 Power 13 | 1 . . 2 5 3 1 . . 1 Engine 8 | 1 . . 2 2 3 . . . . Core 4 | . . . . 3 . 1 . . . Reactor 1 | . . . . . . . . . 1 Propulsion 36 | 2 2 . 11 11 5 1 . 1 3 Treads 2 | . . . . 1 1 . . . . Leg 3 | . . . 1 . 2 . . . . Wheel 18 | 2 2 . 6 4 1 . . . 3 Hover 4 | . . . . 2 1 . . 1 . Flight 9 | . . . 4 4 . 1 . . . Utility 25 | 1 1 1 7 6 5 2 . . 2 Device 11 | . 1 1 2 3 1 2 . . 1 Storage 4 | 1 . . 1 2 . . . . . Processor 6 | . . . 3 . 3 . . . . Hackware 2 | . . . . 1 1 . . . . Protection 2 | . . . 1 . . . . . 1 Artifact . | . . . . . . . . . . Weapon 20 | 3 2 . 5 7 2 . . . 1 Energy Gun 3 | 1 1 . . 1 . . . . . Energy Cannon 2 | . . . . 2 . . . . . Ballistic Gun 7 | 2 . . 4 1 . . . . . Ballistic Cannon 2 | . . . . 1 . . . . 1 Launcher 2 | . 1 . . . 1 . . . . Special Weapon 1 | . . . . 1 . . . . . Impact Weapon 1 | . . . 1 . . . . . . Slashing Weapon 2 | . . . . 1 1 . . . . Piercing Weapon . | . . . . . . . . . . Special Melee Weapon . | . . . . . . . . . . Unidentified Prototypes 7 | . . . 3 2 1 1 . . . Corrupted Parts 1 | . . . 1 . . . . . . System Corruption 4 | . . . 4 . . . . . . Parts Lost 33 | . . . 6 9 2 . 2 6 8 Power 4 | . . . 1 1 . . . 1 1 Propulsion 17 | . . . 3 4 2 . 2 2 4 Utility 7 | . . . 2 1 . . . 2 2 Weapon 5 | . . . . 3 . . . 1 1 Highest Loss Streak 6 | . . . 2 2 1 . 2 6 4 To Critical Strikes . | . . . . . . . . . . Average Backups 13 | 1 7 8 7 13 19 19 19 17 4 Power 2 | . 1 1 1 1 3 3 3 2 . Propulsion . | . 2 3 . . 1 1 1 . . Utility 5 | . 1 2 2 6 9 8 7 6 2 Weapon 4 | . 1 2 3 4 5 6 8 7 2 Tool/Special . | . . . . . . . . . . Unused Backups 31 | . 4 . . 4 3 1 1 13 5 Power 4 | . . . . 1 . . . 3 . Propulsion 4 | . 3 . . . . . . 1 . Utility 14 | . 1 . . . 3 1 1 6 2 Weapon 9 | . . . . 3 . . . 3 3 Tool/Special . | . . . . . . . . . . Average Slot Usage (%) 86 | . 99 100 96 91 90 91 79 62 14 Engine 8 | . 14 14 8 4 12 10 10 7 . Treads 1 | . . . . 1 4 5 2 . . Leg 1 | . . . . . 6 5 2 . . Wheel 14 | . 28 28 25 7 17 10 10 7 2 Flight 10 | . . . 8 26 1 3 5 3 . Device 11 | . 13 14 11 11 8 16 17 16 2 Storage 6 | . 14 14 9 7 6 5 5 3 . Processor 8 | . . . 13 7 12 11 10 9 . Hackware 2 | . . . . 3 3 5 5 5 3 Ballistic Gun 4 | . 14 14 11 5 . . . . . Ballistic Cannon 2 | . . . . . 5 5 5 4 2 Impact Weapon 1 | . . . 4 2 . . . . . Slashing Weapon 3 | . . . . 4 6 5 5 3 . Peak Build Rating 71 | 6 7 8 31 47 64 71 69 65 25 Average Rating 39 | 4 6 7 21 41 58 66 64 53 13 On Entrance 30 | . 6 7 8 30 44 54 69 65 17 Naked Turns 49 | . . . . . . . . . 49 Heaviest Build 71 | 12 15 15 28 66 71 70 70 70 25 Greatest Support 64 | 26 26 26 64 61 59 22 31 31 19 Greatest Overweight (x) 5 | . . . 5 1 2 3 3 4 4 Average Overweight (x) . | . . . . . 1 2 2 1 . Largest Inventory Capacity 20 | 8 8 8 10 20 20 20 20 20 5 Average Capacity 14 | 6 8 8 8 14 20 20 20 17 5 Most Carried 20 | 4 8 8 10 20 20 20 20 20 5 Average Carried 13 | 2 7 7 7 13 19 19 19 17 4 Final Capacity 20 | 8 8 8 10 20 20 20 20 5 5 Final Carried 20 | 4 8 8 8 20 20 20 20 5 5 Class Distribution -------------------- 80% | Mutant 13% | Infiltrator-Mutant 5% | Sprinter Dominant Class ---------------- Mutant | -10/Materials Mutant | -10/Subcaves Mutant | -8/Materials Mutant | -7/Factory Mutant | -6/Factory Infiltrator-Mutant | -5/Factory Infiltrator-Mutant | -4/Factory Infiltrator-Mutant | -4/Waste Mutant | -4/Factory Resources | -11 -10 -10 -8 -7 -6 -5 -4 -4 -4 ----------- Run | Yrd Mat Sub Mat Fac Fac Fac Fac Was Fac Matter Collected 1946 | 214 239 . 786 465 203 . . . 39 Remotely . | . . . . . . . . . . Salvage Created 1973 | . 286 . 837 598 222 . . . 30 Parts 126 | . 26 . 37 36 25 . . . 2 Haulers Intercepted 4 | . 1 . 3 . . . . . . Recyclers Shooed 2 | . 1 . . 1 . . . . . Parts Field Recycled . | . . . . . . . . . . Retrieved Matter . | . . . . . . . . . . Parts Self-Destructed . | . . . . . . . . . . Prevented . | . . . . . . . . . . Kills | -11 -10 -10 -8 -7 -6 -5 -4 -4 -4 ------- Run | Yrd Mat Sub Mat Fac Fac Fac Fac Was Fac Combat Hostiles Destroyed 41 | . 8 . 12 13 8 . . . . Melee 10 | . . . 1 6 3 . . . . Guns 14 | . . . 8 6 . . . . . Cannons 4 | . . . . . 4 . . . . AOE 9 | . 8 . . . 1 . . . . Classes Destroyed 12 | . 8 . 2 1 1 . . . . Worker 5 | . 3 . 1 . . . . . 1 Builder 7 | . 2 . 1 1 3 . . . . Hauler 4 | . 1 . 3 . . . . . . Recycler 4 | . 1 . 2 1 . . . . . Mechanic 1 | . 1 . . . . . . . . Watcher 5 | . 1 . 2 1 1 . . . . Swarmer 16 | . 3 . 3 7 3 . . . . Grunt 15 | . 5 . 7 1 2 . . . . Duelist 1 | . . . . . 1 . . . . Sentry 4 | . . . 1 3 . . . . . Hunter 1 | . . . 1 . . . . . . Programmer 4 | . . . . 2 2 . . . . Best Kill Streak 6 | . 5 . 6 5 3 . . . 1 Combat Bots Only 5 | . 3 . 3 5 3 . . . . Max Kills in Single Turn 4 | . 4 . 1 1 2 . . . 1 Gunslinging . | . . . . . . . . . . Exploded 2 | . 2 . . . 1 . . . . Melee 1 | . . . 1 1 1 . . . . Uniques/NPCs Destroyed . | . . . . . . . . . . Combat | -11 -10 -10 -8 -7 -6 -5 -4 -4 -4 -------- Run | Yrd Mat Sub Mat Fac Fac Fac Fac Was Fac Hostile Shots Fired 533 | . 21 . 72 235 53 . 2 5 145 Missed 174 | . 9 . 17 83 10 . . 1 54 Hits 359 | . 12 . 55 152 43 . 2 4 91 Melee 11 | . . . . . 6 . . 4 1 Projectile 348 | . 12 . 55 152 37 . 2 . 90 AOE 3 | . . . . . . . . . 3 Critical Strikes 10 | . 1 . 1 3 2 . . 1 2 Damage Taken 5982 | . 208 . 794 2099 799 . 151 165 1766 Core 1983 | . 18 . 96 569 147 . . 65 1088 Absorbed by Shields . | . . . . . . . . . . Regen/Repaired (Parts) 233 | . . . . 233 . . . . . Core Remaining (%) 79 | 100 . 92 82 18 82 100 . . . Volleys Fired 164 | . 26 . 53 47 34 4 . . . Largest 2 | . 2 . 2 1 1 1 . . . Hottest 63 | . 60 . 50 63 40 40 . . . Shots Fired 224 | . 48 . 90 48 34 4 . . . Gun 164 | . 33 . 90 41 . . . . . Cannon 41 | . . . . 6 31 4 . . . Launcher 18 | . 15 . . . 3 . . . . Special 1 | . . . . 1 . . . . . Kinetic 192 | . 26 . 90 41 31 4 . . . Thermal . | . . . . . . . . . . Explosive 18 | . 15 . . . 3 . . . . Electromagnetic 13 | . 7 . . 6 . . . . . Robot Hit Streak 12 | . 4 . 12 7 5 . . . . Robot Miss Streak 10 | . 4 . 2 10 5 3 . . . Penetration Max . | . . . . . . . . . . Secondary Targets 1 | . . . 1 . . . . . . Max Gunslinging Chain 1 | . . . 1 . . . . . . Shots Hit Robots 191 | . 25 . 78 55 33 . . . . Core Hits 94 | . 27 . 22 27 16 . . . 2 Critical Kills . | . . . . . . . . . . Critical Parts Destroyed 3 | . . . 2 1 . . . . . Critical Strikes 6 | . . . 2 4 . . . . . Smash 3 | . . . 2 1 . . . . . Sever 3 | . . . . 3 . . . . . Melee Attacks 119 | . . . 32 53 29 4 1 . . Impact 49 | . . . 32 17 . . . . . Slashing 70 | . . . . 36 29 4 1 . . Piercing . | . . . . . . . . . . Sneak Attacks 7 | . . . 4 2 1 . . . . Combat Hostiles 1 | . . . . . 1 . . . . Follow-up Attacks . | . . . . . . . . . . Damage Inflicted 6096 | . 1275 . 1810 1543 1408 . . . 60 Guns 1772 | . 246 . 1082 444 . . . . . Cannons 714 | . . . . 43 671 . . . . Explosions 1536 | . 1027 . . 118 391 . . . . Melee 2012 | . . . 728 938 346 . . . . Ramming 62 | . 2 . . . . . . . 60 Kinetic 2393 | . 196 . 1082 444 671 . . . . Thermal . | . . . . . . . . . . Explosive 1536 | . 1027 . . 118 391 . . . . Electromagnetic 93 | . 50 . . 43 . . . . . Impact 941 | . . . 728 213 . . . . . Slashing 1071 | . . . . 725 346 . . . . Piercing . | . . . . . . . . . . Highest Corruption 10 | . . . 4 3 1 . . . 10 Average Corruption 3 | . . . 4 2 1 . . . 5 Corruption Purged . | . . . . . . . . . . Corruption Blocked 1 | . . . . . 1 . . . . Effects 37 | . . . 10 17 3 . . . 7 Message Errors 12 | . . . 1 7 1 . . . 3 Matter Fused 6 | . . . 3 2 . . . . 1 Heat Flow Errors 3 | . . . . 2 . . . . 1 Energy Discharges 5 | . . . 1 1 2 . . . 1 Parts Rejected 1 | . . . . 1 . . . . . Parts Fused 1 | . . . 1 . . . . . . Data Loss (minor) 5 | . . . 2 2 . . . . 1 Data Loss (major) 1 | . . . 1 . . . . . . Misfires 1 | . . . . 1 . . . . . Alerts 1 | . . . . 1 . . . . . Weapon Failures 1 | . . . 1 . . . . . . Overload Shots . | . . . . . . . . . . Overflow Damage 452 | . 1 . 217 201 33 . . . . Projectiles 11 | . . . . . 11 . . . . Explosions 21 | . 1 . . 10 10 . . . . Melee 420 | . . . 217 191 12 . . . . Knockbacks 12 | . . . 1 1 10 . . . . Impact 2 | . . . 1 1 . . . . . Kinetic 10 | . . . . . 10 . . . . Secondary . | . . . . . . . . . . Self-Inflicted Damage 180 | . 59 . . 93 . . . . 28 Shots 5 | . 4 . . 1 . . . . . Rammed 18 | . 1 . . . . . . . 17 Targets Rammed 18 | . 1 . . . . . . . 17 Kicked . | . . . . . . . . . . Crushed . | . . . . . . . . . . Highest Temperature 207 | . 30 . 157 207 15 . . . 139 Average Temperature 37 | . 13 . 44 42 7 . . . 71 Received Heat Transfer 747 | . 81 . 333 180 153 . . . . Siege Activations . | . . . . . . . . . . Martial Activations . | . . . . . . . . . . Shielding Activations . | . . . . . . . . . . Robots Disrupted . | . . . . . . . . . . Combat Hostiles . | . . . . . . . . . . Robots Corrupted 4 | . . . 3 1 . . . . . Combat Hostiles 4 | . . . 3 1 . . . . . Parts Fried 10 | . . . 7 3 . . . . . Impact Corruptions 10 | . . . 8 2 . . . . . Robots Melted . | . . . . . . . . . . Combat Hostiles . | . . . . . . . . . . Parts Melted . | . . . . . . . . . . Heat Transferred . | . . . . . . . . . . Parts Sabotaged . | . . . . . . . . . . Parts Stolen . | . . . . . . . . . . Parts Stripped . | . . . . . . . . . . Power Chain Reactions . | . . . . . . . . . . Alert | -11 -10 -10 -8 -7 -6 -5 -4 -4 -4 ------- Run | Yrd Mat Sub Mat Fac Fac Fac Fac Was Fac Maximum Alert Level 1 | . 1 . . 1 . . . . . Low Security (%) 99 | 100 90 . 100 99 100 100 100 100 100 Level 1 . | . 9 . . . . . . . . Level 2 . | . . . . . . . . . . Level 3 . | . . . . . . . . . . Level 4 . | . . . . . . . . . . Level 5 . | . . . . . . . . . . High Security . | . . . . . . . . . . Max Security . | . . . . . . . . . . Peak Influence 231 | . 231 . 156 195 93 4 15 . 75 Initial 67 | . . . 54 67 53 1 . . . Average 55 | . 55 . 42 115 29 . 5 . 13 Influence Increases 1904 | . 325 . 398 659 310 12 30 . 170 Destroy 0b10 Robot/C 820 | . 160 . 240 260 160 . . . . Destroy 0b10 Robot/NC 130 | . 45 . 45 15 20 . . . 5 Destroy Leader 218 | . 44 . 60 72 42 . . . . Successful Hack 47 | . . . 2 21 24 . . . . Disable Machine 210 | . 15 . 30 150 . . 15 . . Destroy Structure 179 | . 61 . 6 66 34 12 . . . Partial Spotted 15 | . . . . 15 . . . . . Lose Combat Pursuer 285 | . . . 15 60 30 . 15 . 165 Influence Decreases 1854 | . 103 117 355 697 416 16 30 . 120 Entered New Map 299 | . . 107 51 81 57 3 . . . Time Decay 1361 | . 103 10 285 526 339 13 25 . 60 Lost Part 194 | . . . 19 90 20 . 5 . 60 Squads Dispatched 19 | . 2 . 3 6 4 1 . . 3 Investigation 7 | . 1 . 3 2 1 . . . . Extermination 5 | . . . . 3 2 . . . . Reinforcement 7 | . 1 . . 1 1 1 . . 3 Assault . | . . . . . . . . . . Garrison . | . . . . . . . . . . Intercept . | . . . . . . . . . . Searches Triggered . | . . . . . . . . . . Construction Impeded 1 | . . . . 1 . . . . . Haulers Reinforced . | . . . . . . . . . . Active Scanning Responses . | . . . . . . . . . . Cargo Convoy Interrupts . | . . . . . . . . . . Stealth | -11 -10 -10 -8 -7 -6 -5 -4 -4 -4 --------- Run | Yrd Mat Sub Mat Fac Fac Fac Fac Was Fac Distress Signals 4 | . . . 1 3 . . . . . Communications Jammed . | . . . . . . . . . . Distress Signals . | . . . . . . . . . . Times Spotted 89 | . 12 2 17 21 11 3 . 4 19 Peak Tracking Total 10 | . 3 2 3 5 3 1 1 4 10 Tactical Retreats 13 | . 2 . 1 3 2 . 1 . 4 Traps | -11 -10 -10 -8 -7 -6 -5 -4 -4 -4 ------- Run | Yrd Mat Sub Mat Fac Fac Fac Fac Was Fac Traps Triggered 4 | . 1 . . 1 . . 1 . 1 Indirectly . | . . . . . . . . . . Trap Hack Attempts . | . . . . . . . . . . Triggered . | . . . . . . . . . . Disarmed . | . . . . . . . . . . Reprogrammed . | . . . . . . . . . . Reused . | . . . . . . . . . . Traps Extracted . | . . . . . . . . . . Installed . | . . . . . . . . . . Triggered . | . . . . . . . . . . Machines | -11 -10 -10 -8 -7 -6 -5 -4 -4 -4 ---------- Run | Yrd Mat Sub Mat Fac Fac Fac Fac Was Fac Machines Disabled 14 | . 1 . 2 10 . . 1 . . Max in Single Turn 4 | . 1 . 1 4 . . 1 . . Garrison Access 1 | . . . . 1 . . . . . Machines Repaired . | . . . . . . . . . . Machines Dismantled . | . . . . . . . . . . Machines Sabotaged . | . . . . . . . . . . Overloaded Fab Kills . | . . . . . . . . . . Hacking | -11 -10 -10 -8 -7 -6 -5 -4 -4 -4 --------- Run | Yrd Mat Sub Mat Fac Fac Fac Fac Was Fac Machines Accessed 16 | . . . 3 10 3 . . . . Terminals 8 | . . . 1 4 3 . . . . Fabricators 1 | . . . . 1 . . . . . Repair Stations 2 | . . . . 2 . . . . . Recycling Units 2 | . . . . 2 . . . . . Scanalyzers 2 | . . . 2 . . . . . . Garrison Access 1 | . . . . 1 . . . . . Total Hacks 39 | . . . 13 19 7 . . . . Successful 25 | . . . 11 10 4 . . . . Failed 14 | . . . 2 9 3 . . . . Catastrophic 3 | . . . 1 1 1 . . . . Database Lockouts . | . . . . . . . . . . Manual 17 | . . . 2 9 6 . . . . Terminals 18 | . . . 2 9 7 . . . . Fabricators 1 | . . . . 1 . . . . . Repair Stations 4 | . . . . 4 . . . . . Recycling Units 3 | . . . . 3 . . . . . Scanalyzers 11 | . . . 11 . . . . . . Garrison Access 2 | . . . . 2 . . . . . Terminal Hacks 4 | . . . . 2 2 . . . . Level Access Points 2 | . . . . 1 1 . . . . Branch Access Points 1 | . . . . 1 . . . . . Terminal Index 1 | . . . . . 1 . . . . Fabricator Hacks . | . . . . . . . . . . Repair Station Hacks 4 | . . . . 4 . . . . . Scan Component 2 | . . . . 2 . . . . . Repair 2 | . . . . 2 . . . . . Recycling Unit Hacks 3 | . . . . 3 . . . . . Process 1 | . . . . 1 . . . . . Report Inventory 1 | . . . . 1 . . . . . Retrieve Components 1 | . . . . 1 . . . . . Scanalyzer 11 | . . . 11 . . . . . . Insert Component 4 | . . . 4 . . . . . . Analyze 7 | . . . 7 . . . . . . Garrison Access Hacks 1 | . . . . 1 . . . . . Seal Access 1 | . . . . 1 . . . . . Unauthorized Hacks 2 | . . . . . 2 . . . . Terminals 2 | . . . . . 2 . . . . Botnet 2 | . . . . . 2 . . . . Fabricators . | . . . . . . . . . . Repair Stations . | . . . . . . . . . . Recycling Units . | . . . . . . . . . . Scanalyzers . | . . . . . . . . . . Garrison Access . | . . . . . . . . . . Data Cores Recovered . | . . . . . . . . . . Used . | . . . . . . . . . . Hacking Detections 13 | . . . 3 7 3 . . . . Full Trace Events 6 | . . . 3 2 1 . . . . Feedback Events . | . . . . . . . . . . Feedback Blocked . | . . . . . . . . . . Robot Schematics Acquired . | . . . . . . . . . . Robots Built . | . . . . . . . . . . Authchips . | . . . . . . . . . . Time . | . . . . . . . . . . Total Robot Build Rating . | . . . . . . . . . . Part Schematics Acquired 3 | . . . 3 . . . . . . Parts Built . | . . . . . . . . . . Authchips . | . . . . . . . . . . Time . | . . . . . . . . . . Total Part Build Rating . | . . . . . . . . . . Parts Repaired 2 | . . . . 2 . . . . . Time 95 | . . . . 95 . . . . . Parts Recycled . | . . . . . . . . . . Recycled Matter . | . . . . . . . . . . Retrieved Matter . | . . . . . . . . . . Retrieved Components . | . . . . . . . . . . Parts Scanalyzed 4 | . . . 4 . . . . . . Part Schematics Acquired 3 | . . . 3 . . . . . . Parts Damaged . | . . . . . . . . . . Bothacking | -11 -10 -10 -8 -7 -6 -5 -4 -4 -4 ------------ Run | Yrd Mat Sub Mat Fac Fac Fac Fac Was Fac Used RIF Installer . | . . . . . . . . . . Robots Hacked 1 | . . . . 1 . . . . . Non-combat . | . . . . . . . . . . Combat 1 | . . . . 1 . . . . . Robot Hacks Applied 1 | . . . . 1 . . . . . parse_system 1 | . . . . 1 . . . . . Relay Couplers Released . | . . . . . . . . . . Fabnet Peak Effective % . | . . . . . . . . . . Robots Rewired . | . . . . . . . . . . Allies Hacked . | . . . . . . . . . . Hacks Repelled . | . . . . . . . . . . Allies | -11 -10 -10 -8 -7 -6 -5 -4 -4 -4 -------- Run | Yrd Mat Sub Mat Fac Fac Fac Fac Was Fac Total Allies . | . . . . . . . . . . Largest Group . | . . . . . . . . . . Highest-Rated Group . | . . . . . . . . . . Highest-Rated Ally . | . . . . . . . . . . Total Orders . | . . . . . . . . . . Ally Attacks . | . . . . . . . . . . Total Damage . | . . . . . . . . . . Kills . | . . . . . . . . . . Allies Corrupted . | . . . . . . . . . . Allies Melted . | . . . . . . . . . . Intel | -11 -10 -10 -8 -7 -6 -5 -4 -4 -4 ------- Run | Yrd Mat Sub Mat Fac Fac Fac Fac Was Fac Active Infowar (turns) 3357 | . 410 38 683 709 862 471 88 96 . Optics 712 | . . . 675 37 . . . . . Sensors 2861 | . . 14 659 672 862 471 88 95 . Jamming 645 | . . . . . . 461 88 96 . ECM 781 | . 410 24 5 . . 342 . . . Robot Analysis Total . | . . . . . . . . . . Derelict Logs Recovered 1 | . . 1 . . . . . . . Drone Launches . | . . . . . . . . . . Drone Recoveries . | . . . . . . . . . . Exploration | -11 -10 -10 -8 -7 -6 -5 -4 -4 -4 ------------- Run | Yrd Mat Sub Mat Fac Fac Fac Fac Was Fac Turns Passed 4673 | 53 423 38 683 1473 984 471 88 117 343 Spaces Moved 3921 | 44 354 37 471 1412 702 316 68 109 408 Core 160 | 2 . . . . . . . 32 126 Treads . | . . . . . . . . . . Legs 1 | . . . . . . 1 . . . Wheels 2625 | 42 354 37 285 530 702 315 68 68 224 Hover 67 | . . . . . . . . 9 58 Flight 1068 | . . . 186 882 . . . . . Fastest Speed 23 | 50 90 90 31 23 105 115 115 40 40 Average Speed 87 | 87 90 90 76 72 107 130 122 94 69 Slowest Speed 390 | 90 90 90 390 115 115 340 130 250 250 Overloaded Moves . | . . . . . . . . . . Propulsion Burnouts . | . . . . . . . . . . Robots Hopped . | . . . . . . . . . . Potential Cave-ins . | . . . . . . . . . . Cave-ins Triggered . | . . . . . . . . . . Exploration Rate (%) 22 | 4 39 2 25 31 21 11 2 76 15 Regions Visited 9 Branch Regions 1 Pre-discovered Areas . | . . . . . . . . . . Known Exits Taken 4 | . . . 1 1 1 1 . . . Unknown Exits Taken 3 | 1 1 1 . . . . . . . Scrap Searched . | . . . . . . . . . . Spaces Dug 43 | . . . 5 18 16 4 . . . Terrain Destroyed 205 | . 80 . 5 74 40 6 . . . Melee 42 | . . . 5 18 15 4 . . . Projectile 7 | . . . . . 5 2 . . . AOE 156 | . 80 . . 56 20 . . . . Terrain Rammed . | . . . . . . . . . . Walls Destroyed . | . . . . . . . . . . Machines Disabled . | . . . . . . . . . . Actions | -11 -10 -10 -8 -7 -6 -5 -4 -4 -4 --------- Run | Yrd Mat Sub Mat Fac Fac Fac Fac Was Fac Total 4828 | 54 412 41 688 1746 859 365 73 123 467 Wait 355 | 1 10 2 67 155 57 25 . 8 30 Move 3913 | 43 353 36 470 1411 701 315 68 108 408 Hop . | . . . . . . . . . . Pick Up 69 | 3 8 1 12 22 11 4 2 3 3 Fast Attach 53 | 6 3 . 12 17 4 5 . 1 5 Attach 22 | . . . 10 4 3 2 1 . 2 Detach 5 | . . . 4 . . . . . 1 Swap 38 | 1 3 1 11 13 9 . . . . Drop 72 | . 8 1 17 24 11 6 1 3 1 Fire 164 | . 26 . 53 47 34 4 . . . Melee 119 | . . . 32 53 29 4 1 . . Ram 18 | . 1 . . . . . . . 17 Kick . | . . . . . . . . . . Crush . | . . . . . . . . . . Escape Stasis . | . . . . . . . . . . Rewire . | . . . . . . . . . . Trap . | . . . . . . . . . . Miscellaneous . | . . . . . . . . . . Route ------- -11/Scrapyard -10/Materials (discovered 2 exits: [*Min] / [*Sub]) -10/Subcaves -8/Materials -7/Factory (discovered 6 exits: *Fac x4 / Low x2) -6/Factory (discovered 4 exits: *Fac x4) -5/Factory (discovered 2 exits: *Fac / *Upp) -4/Factory -4/Waste -4/Factory History --------- Turn | Location | Event 16 | -11/Scrapyard | Discovered new exit (range 15) 54 | -11/Scrapyard | Entered Materials 103 | -10/Materials | Discovered new exit (range 16) 160 | -10/Materials | Discovered new exit (range 9) 313 | -10/Materials | Build established: Mutant 477 | -10/Materials | Entered Subcaves 477 | -10/Subcaves | Learned Materials security intel 489 | -10/Subcaves | Discovered new exit (range 6) 492 | -10/Subcaves | Shifting Twisted Machinery released Sub. Beam Cannon 515 | -10/Subcaves | Entered Materials 515 | -8/Materials | Evolved 4 slots: Propulsion x2, Utility x2 1009 | -8/Materials | Discovered new exit (range 17) 1198 | -8/Materials | Identified exit to Factory 1198 | -8/Materials | Entered Factory 1198 | -7/Factory | Evolved 2 slots: Propulsion x2 1347 | -7/Factory | Repaired Imp. Flight Unit 2013 | -7/Factory | Identified exit to Lower Caves 2171 | -7/Factory | Core integrity fell below 50% 2225 | -7/Factory | Identified exit to Factory 2306 | -7/Factory | Repaired Arm. Huge Wheel 2490 | -7/Factory | Core integrity fell below 20% 2671 | -7/Factory | Entered another Factory area 2671 | -6/Factory | Evolved 2 slots: Power x1, Utility x1 3341 | -6/Factory | Identified exit to Factory 3655 | -6/Factory | Entered another Factory area 3655 | -5/Factory | Evolved 2 slots: Utility x2 3829 | -5/Factory | Discovered new exit (range 9) 3846 | -5/Factory | Identified exit to Upper Caves 3968 | -5/Factory | Build established: Infiltrator-Mutant 4093 | -5/Factory | Discovered new exit (range 6) 4100 | -5/Factory | Identified exit to Factory 4126 | -5/Factory | Entered another Factory area 4126 | -4/Factory | Evolved 2 slots: Power x1, Utility x1 4214 | -4/Factory | Sucked down chute 4214 | -4/Factory | Entered Waste 4243 | -4/Waste | Spotted C-40 Crusher 4271 | -4/Waste | Spotted C-40 Crusher 4285 | -4/Waste | Spotted C-40 Crusher 4295 | -4/Waste | Spotted C-40 Crusher 4297 | -4/Waste | Crushed by Compactor (1 part destroyed, 1 dropped) 4303 | -4/Waste | Crushed by Compactor (1 part destroyed, 2 dropped) 4309 | -4/Waste | Crushed by Compactor (1 part destroyed, 2 dropped) 4310 | -4/Waste | Crushed by Compactor (1 part destroyed, 2 dropped) 4321 | -4/Waste | Discovered new exit (range 13) 4331 | -4/Waste | Identified exit to Factory 4331 | -4/Waste | Entered Factory 4341 | -4/Factory | Lost 6 parts (1p2n2u1w) 4604 | -4/Factory | Build established: Mutant 4614 | -4/Factory | Core integrity fell below 50% 4657 | -4/Factory | Core integrity fell below 20% 4670 | -4/Factory | Lost 4 parts (2n2u) 4673 | -4/Factory | System corruption reached 10% 4674 | -4/Factory | Destroyed by S-27 Virus with Autogun Last Messages --------------- 04618_ K-01 Serf collects debris. 04622_ O-32 Director: "IFF HANDSHAKE FAILED. SECURING TERMINAL." 04622_ K-01 Serf cleans the Nuclear Reactor. 04627_ T-07 Excavator is excavating. 04628_ ALERT: Hostiles spotted, dispatching reinforcements to Terminal F001. 04631_ T-07 Excavator is excavating. 04639_ Wheel destroyed. 04640_ T-07 Excavator is excavating. 04651_ Slammed into S-27 Virus. 04654_ Slammed into P-70 Sage. 04657_ System corrupted: Energy discharge (-37). 04661_ Slammed into S-27 Virus. 04663_ Slammed into P-70 Sage. 04669_ T-07 Excavator is excavating. 04670_ Slammed into T-07 Excavator. 04672_ Slammed into S-27 Virus. 04672_ Destabilizing: System corrupted (+1). 04673_ Slammed into S-27 Virus. 04674_ S-27 Virus destroyed. Map ----- +----------------------------------------------------+ | + #????????????????????????????? | | # #????????????????????????????? | | # #????????????????????????????? | | """ #? #????????????????????????????? | | """ #? #????????????????????????????? | | """ +?? #????????????????????????????? | | """ #??###########????????????????????????????? | | #?????????????????????????????????????????? | | #?????????????????????????????????????????? | | #?????????????????????????????????????????? | | ####+#######?????????????????????????????????????? | | #???????????????????????????######????? | | * #???????????????????????????# #????? | | #???????????????????????????# "#????? | | #???????###########?????????# "#????? | | #???????# #????###### "#????? | | ] "" "" #???????# """ """ #????# + T#????? | | "" "" #???????# """ """ #????# #### "#????? | | """ """ #???????# """ """ #????# #??# "#????? | | """ """ #???????# #????# #??# "#????? | | """ """ #???????# "" "" ###### #??# = #????? | | #???????# ""S"" / #??######????? | | #???????# """" # #??# #????? | | ######/####################### #??# #????? | | + #???#%=p # #### !#????? | | # """"#???#=@sl + #????? | | # """"#???## # # #????? | | "" """ =%+ """"#????##### # "" #????? | | "" """ # """"#????????# # Y" #????? | | "" """ # """"#????????# # "" #????? | | # """"#????????# # #????? | | # """"#????????# ######????? | | !! # #????????# #######?????????? | | !! ##########????????# #???????????????? | | ###### ##+######????????????# #???????????????? | | ###### # #????????????# #???????????????? | | / #????????##### #???????????????? | | # #????????# #???????????????? | | #####+###????????# #+##+#########???????? | | #???# #??????????# # #???????? | | #???# ###????????# + """ """ #???????? | | ##### # ########## # """ """ ????????? | | ## # """ """ ?????????? | | ## # ????????? | | ! * # """ """ +???????? | | !! # """ """??????????? | | !! "" ## """ """??????????? | | """## ??????????? | | """ T"## ??????????? | | """"" """## ? ??????????? | +----------------------------------------------------+ Best States ------------- Heat Dissipation 43 Energy Generation 31 Energy Capacity 290 Matter Stores 300 Matter Capacity 300 Sight Range 18 Robot Scan Range 16 Terrain Scan Density 10 ECM Strength 2 Jamming Range 12 Additional Mass Support 9 Corruption Block 8 Armor Coverage 225 Evasion (%) 65 Targeting Accuracy 6 Melee Accuracy 5 Offensive Hacking 10 Defensive Hacking 10 Item Schematics ----------------- Imp. Flight Unit | -8/Materials | Scanalyzed Enh. Autogun | -8/Materials | Scanalyzed Imp. Light Armor Plating | -8/Materials | Scanalyzed Robot Schematics ------------------ None Fabricated ------------ Nothing Repaired ---------- Imp. Flight Unit | 22% | -7/Factory Arm. Huge Wheel | 19% | -7/Factory Alien Tech Used ----------------- None Achievements -------------- Can't Catch Me Challenges ------------ None Game ------ Seed PrecisionBottomlessJammer Manual? 0 Play Time 01:32:31 Cumulative 57.5 hours Start 2025.09.20 @ 07:21:52 End 2025.09.20 @ 21:50:01 Sessions 7 Manual Loads 0 Difficulty Rogue Special Mode None Game No. 62 Rogue 62 Adventurer 0 Explorer 0 Win Type - Total 0 Types 0/0/0/0/0/0/0/0/0/0 Lore% 18 Gallery% 31 Achievement% 27 Wizard Run 0 Options --------- Layout 1 ASCII 0 Keyboard 0 Movement Numpad Keybinds 0 Fullscreen 1 Font 32/SmallcapsGlow Map View 77x35 Zoom Use 0% Tactical HUD 1 Map Filters NONE Filters NONE Steam 1 RUN: 3bddf1b8-30dc-410c-96fc-c605ec12743f